fUST/lending_fUST_20240117
["ID","MTS","AMOUNT","RATE_DAILY","PERIOD"]
[311929696,1705505438928,-500.0,0.00021917,2]
[311929697,1705505438937,-500.0,0.00021917,2]
[311929698,1705505438947,-1000.0,0.00021917,2]
[311929699,1705505438956,-500.0,0.00021917,2]
[311929700,1705505438965,-500.0,0.00021917,2]
[311929701,1705505438975,-500.0,0.00021917,2]
[311929702,1705505438985,-547.60006591,0.00021917,2]
[311929703,1705505438994,-623.8,0.00021917,2]
[311929704,1705505439004,-500.0,0.00021917,2]
[311929705,1705505439015,-500.0,0.00021917,2]
[311929706,1705505439024,-500.0,0.00021917,2]
[311929707,1705505439034,-500.0,0.00021917,2]
[311929709,1705505439043,-1294.5,0.00021917,2]
[311929710,1705505439053,-500.0,0.00021917,2]
[311929712,1705505439063,-500.0,0.00021917,2]
[311929714,1705505439072,-500.0,0.00021917,2]
[311929716,1705505439082,-1733.0,0.00021917,2]
[311929718,1705505439091,-500.0,0.00021917,2]
[311929720,1705505439102,-500.0,0.00021917,2]
[311929722,1705505439111,-500.0,0.00021917,2]
[311929724,1705505439120,-500.0,0.00021917,2]
[311929726,1705505439129,-500.0,0.00021917,2]
[311929728,1705505439139,-500.0,0.00021917,2]
[311929730,1705505439149,-490.92752769,0.00021917,2]
[311929732,1705505439158,-500.0,0.00021917,2]
[311929734,1705505439167,-500.0,0.00021917,2]
[311929736,1705505439176,-500.0,0.00021917,2]
[311929738,1705505439186,-500.0,0.00021917,2]
[311929740,1705505439195,-500.0,0.00021917,2]
[311929742,1705505439205,-500.0,0.00021917,2]
[311929744,1705505439214,-500.0,0.00021917,2]
[311929745,1705505439223,-500.0,0.00021917,2]
[311929747,1705505439233,-500.0,0.00021917,2]
[311929750,1705505439243,-500.0,0.00021917,2]
[311929752,1705505439252,-230.96082236,0.00021917,5]
[311929753,1705505439263,-500.0,0.00021917,2]
[311929756,1705505439276,-500.0,0.00021917,2]
[311929765,1705505439361,-500.0,0.00021917,2]
[311929767,1705505439372,-500.0,0.00021917,2]
[311929769,1705505439381,-504.17724233,0.00021917,2]
[311929771,1705505439390,-670.69,0.00021917,2]
[311929773,1705505439400,-500.0,0.00021917,2]
[311929775,1705505439409,-500.0,0.00021917,2]
[311929777,1705505439418,-500.0,0.00021917,2]
[311929779,1705505439428,-500.0,0.00021917,2]
[311929781,1705505439438,-398.41303084,0.00021917,2]
[311929783,1705505439448,-500.0,0.00021917,2]
[311929785,1705505439457,-500.0,0.00021917,2]
[311929787,1705505439466,-500.0,0.00021917,2]
[311929789,1705505439476,-500.0,0.00021917,2]
[311929791,1705505439485,-511.93,0.00021917,2]
[311929793,1705505439494,-500.0,0.00021917,2]
[311929794,1705505439503,-760.31,0.00021917,2]
[311929796,1705505439516,-500.0,0.00021917,2]
[311929798,1705505439525,-500.0,0.00021917,2]
[311929800,1705505439534,-500.0,0.00021917,2]
[311929802,1705505439543,-382.58669765,0.00021917,2]
[311929804,1705505439553,-500.0,0.00021917,2]
[311929807,1705505439562,-500.0,0.00021917,2]
[311929809,1705505439573,-500.0,0.00021917,2]
[311929810,1705505439582,-500.0,0.00021917,2]
[311929812,1705505439592,-523.68136719,0.00021917,2]
[311929814,1705505439602,-500.0,0.00021917,2]
[311929816,1705505439611,-500.0,0.00021917,2]
[311929818,1705505439621,-500.0,0.00021917,2]
[311929820,1705505439632,-992.74,0.00021917,2]
[311929822,1705505439641,-500.0,0.00021917,2]
[311929824,1705505439650,-500.0,0.00021917,2]
[311929826,1705505439660,-500.0,0.00021917,2]
[311929828,1705505439669,-500.0,0.00021917,2]
[311929830,1705505439678,-500.0,0.00021917,2]
[311929832,1705505439688,-500.0,0.00021917,2]
[311929834,1705505439698,-500.0,0.00021917,2]
[311929836,1705505439707,-500.0,0.00021917,2]
[311929838,1705505439717,-500.0,0.00021917,2]
[311929840,1705505439726,-500.0,0.00021917,2]
[311929842,1705505439738,-4009.51,0.00021917,2]
[311929844,1705505439748,-500.0,0.00021917,2]
[311929846,1705505439759,-500.0,0.00021917,2]
[311929848,1705505439768,-500.0,0.00021917,2]
[311929850,1705505439778,-500.0,0.00021917,2]
[311929852,1705505439788,-500.0,0.00021917,2]
[311929854,1705505439798,-434.48775725,0.00021917,2]
[311929856,1705505439807,-1319.46,0.00021917,2]
[311929858,1705505439817,-500.0,0.00021917,2]
[311929860,1705505439827,-500.0,0.00021917,2]
[311929862,1705505439837,-843.97,0.00021917,2]
[311929864,1705505439846,-322.25229753,0.00021917,2]
[311929866,1705505439855,-1067.41,0.00021917,2]
[311929868,1705505439865,-500.0,0.00021917,2]
[311929870,1705505439874,-500.0,0.00021917,2]
[311929872,1705505439885,-500.0,0.00021917,2]
[311929874,1705505439895,-500.0,0.00021917,2]
[311929876,1705505439906,-500.0,0.00021917,2]
[311929878,1705505439916,-500.0,0.00021917,2]
[311929880,1705505439926,-241.37531993,0.00021917,2]
[311929882,1705505439936,-501.70820656,0.00021917,5]
[311929884,1705505439947,-500.0,0.00021917,2]
[311929886,1705505439958,-500.0,0.00021917,2]
[311929888,1705505439970,-500.0,0.00021917,2]
[311929890,1705505439981,-500.0,0.00021917,2]
[311929892,1705505439992,-500.0,0.00021917,2]
[311929894,1705505440002,-600.88725899,0.00021917,2]
[311929895,1705505440018,-500.0,0.00021917,2]
[311929897,1705505440028,-500.0,0.00021917,2]
[311929899,1705505440040,-753.9,0.00021917,2]
[311929901,1705505440050,-988.65,0.00021917,2]
[311929903,1705505440060,-500.0,0.00021917,2]
[311929905,1705505440070,-500.0,0.00021917,2]
[311929907,1705505440079,-1059.34,0.00021917,2]
[311929909,1705505440090,-550.0,0.00021917,2]
[311929911,1705505440100,-500.0,0.00021917,2]
[311929913,1705505440110,-9238.11,0.00021917,2]
[311929915,1705505440121,-1539.66,0.00021917,2]
[311929918,1705505440139,-500.0,0.00021917,2]
[311929920,1705505440153,-8389.48,0.00021917,2]
[311929923,1705505440169,-500.0,0.00021917,2]
[311929925,1705505440181,-500.0,0.00021917,2]
[311929928,1705505440197,-500.0,0.00021917,2]
[311929930,1705505440210,-500.0,0.00021917,2]
[311929934,1705505440224,-500.0,0.00021917,2]
[311929937,1705505440238,-500.0,0.00021917,2]
[311929940,1705505440252,-500.0,0.00021917,2]
[311929942,1705505440267,-500.0,0.00021917,2]
[311929944,1705505440279,-500.0,0.00021917,2]
[311929946,1705505440292,-357.88867272,0.00021917,2]
[311929949,1705505440305,-500.0,0.00021917,2]
[311929952,1705505440317,-500.0,0.00021917,2]
[311929957,1705505440331,-500.0,0.00021917,2]
[311929961,1705505440346,-500.0,0.00021917,2]
[311929964,1705505440356,-500.0,0.00021917,2]
[311929967,1705505440367,-500.0,0.00021917,2]
[311929971,1705505440383,-500.0,0.00021917,2]
[311929973,1705505440395,-500.0,0.00021917,2]
[311929975,1705505440408,-1515.39,0.00021917,2]
[311929978,1705505440420,-500.0,0.00021917,2]
[311929980,1705505440433,-500.0,0.00021917,2]
[311929983,1705505440446,-500.0,0.00021917,2]
[311929985,1705505440459,-500.0,0.00021917,2]
[311929987,1705505440473,-500.0,0.00021917,2]
[311929990,1705505440486,-500.0,0.00021917,2]
[311929992,1705505440500,-500.0,0.00021917,2]
[311929995,1705505440516,-1630.61,0.00021917,2]
[311929997,1705505440526,-500.0,0.00021917,2]
[311929999,1705505440537,-500.0,0.00021917,2]
[311930001,1705505440549,-500.0,0.00021917,2]
[311930004,1705505440561,-500.0,0.00021917,2]
[311930006,1705505440572,-159.14815525,0.00021917,2]
[311930008,1705505440587,-500.0,0.00021917,2]
[311930010,1705505440600,-500.0,0.00021917,2]
[311930013,1705505440611,-500.0,0.00021917,2]
[311930015,1705505440622,-1305.39,0.00021917,2]
[311930017,1705505440634,-500.0,0.00021917,2]
[311930019,1705505440645,-226.6921614,0.00021917,2]
[311930022,1705505440658,-500.0,0.00021917,2]
[311930024,1705505440670,-500.0,0.00021917,2]
[311930026,1705505440681,-17294.74,0.00021917,2]
[311930028,1705505440692,-500.0,0.00021917,2]
[311930030,1705505440705,-3493.69,0.00021917,2]
[311930033,1705505440716,-500.0,0.00021917,2]
[311930035,1705505440727,-4056.05,0.00021917,2]
[311930037,1705505440739,-366.65755106,0.00021917,2]
[311930039,1705505440750,-500.0,0.00021917,2]
[311930041,1705505440763,-500.0,0.00021917,2]
[311930044,1705505440774,-5000.6,0.00021917,2]
[311930046,1705505440784,-500.0,0.00021917,2]
[311930048,1705505440795,-500.0,0.00021917,2]
[311930050,1705505440806,-500.0,0.00021917,2]
[311930052,1705505440817,-500.0,0.00021917,2]
[311930055,1705505440829,-500.0,0.00021917,2]
[311930057,1705505440839,-500.0,0.00021917,2]
[311930059,1705505440850,-500.0,0.00021917,2]
[311930061,1705505440862,-500.0,0.00021917,2]
[311930063,1705505440873,-500.0,0.00021917,2]
[311930066,1705505440884,-500.0,0.00021917,2]
[311930068,1705505440895,-1665.49,0.00021917,2]
[311930070,1705505440907,-500.0,0.00021917,2]
[311930072,1705505440918,-166.666666,0.00021918,2]
[311930074,1705505440929,-9657.37350875,0.00021971,2]
[311930076,1705505440939,-5000.0,0.00021971,2]
[311930078,1705505440950,-5000.0,0.00021971,2]
[311930081,1705505440961,-38960.5225481,0.00021971,2]
[311930083,1705505440972,-5000.0,0.00021971,2]
[311930085,1705505440984,-5000.0,0.00021971,2]
[311930087,1705505440995,-50000.0,0.00021971,2]
[311930090,1705505441007,-50000.0,0.00021971,2]
[311930092,1705505441020,-50000.0,0.00021971,2]
[311930094,1705505441032,-50000.0,0.00021971,2]
[311930106,1705505441137,-92380.27107582,0.00021971,2]
[311930109,1705505441153,-296.93081924,0.00022,2]
[311930111,1705505441162,-293.1976279,0.00022,4]
[311930113,1705505441171,-3955.54830897,0.00022,2]
[311930114,1705505441180,-425.53656097,0.00022,2]
[311930116,1705505441190,-500.0,0.00022053,2]
[311930118,1705505441199,-500.0,0.00022053,2]
[311930120,1705505441208,-500.0,0.00022053,2]
[311930123,1705505441218,-500.0,0.00022054,2]
[311930125,1705505441227,-500.0,0.00022054,2]
[311930127,1705505441236,-500.0,0.00022054,2]
[311930128,1705505441245,-500.0,0.00022054,2]
[311930131,1705505441255,-500.0,0.00022054,2]
[311930133,1705505441266,-500.0,0.00022054,2]
[311930135,1705505441275,-500.0,0.00022054,2]
[311930137,1705505441284,-500.0,0.00022054,2]
[311930139,1705505441292,-603.61780197,0.00022054,2]
[311930141,1705505441301,-623.8,0.00022054,2]
[311930143,1705505441310,-500.0,0.00022054,2]
[311930144,1705505441320,-1294.5,0.00022054,2]
[311930146,1705505441330,-500.0,0.00022054,2]
[311930149,1705505441338,-1733.0,0.00022054,2]
[311930150,1705505441347,-519.01649096,0.00022054,2]
[311930152,1705505441358,-500.0,0.00022054,2]
[311930154,1705505441368,-500.0,0.00022054,2]
[311930156,1705505441377,-500.0,0.00022054,2]
[311930158,1705505441386,-500.0,0.00022054,2]
[311930160,1705505441394,-500.0,0.00022054,2]
[311930162,1705505441403,-500.0,0.00022054,2]
[311930164,1705505441412,-500.0,0.00022054,2]
[311930166,1705505441421,-500.0,0.00022054,2]
[311930168,1705505441430,-500.0,0.00022054,2]
[311930170,1705505441440,-500.0,0.00022054,2]
[311930172,1705505441448,-500.0,0.00022054,2]
[311930174,1705505441457,-500.0,0.00022054,2]
[311930176,1705505441466,-500.0,0.00022054,2]
[311930178,1705505441476,-500.0,0.00022054,2]
[311930180,1705505441486,-670.69,0.00022054,2]
[311930181,1705505441495,-500.0,0.00022054,2]
[311930182,1705505441505,-500.0,0.00022054,2]
[311930183,1705505441518,-375.57578081,0.00022054,2]
[311930184,1705505441527,-500.0,0.00022054,2]
[311930185,1705505441537,-359.50905865,0.00022054,2]
[311930187,1705505441546,-500.0,0.00022054,2]
[311930189,1705505441555,-511.93,0.00022054,2]
[311930191,1705505441563,-500.0,0.00022054,2]
[311930193,1705505441572,-760.31,0.00022054,2]
[311930195,1705505441581,-500.0,0.00022054,2]
[311930197,1705505441591,-500.0,0.00022054,2]
[311930199,1705505441600,-500.0,0.00022054,2]
[311930201,1705505441609,-500.0,0.00022054,2]
[311930203,1705505441618,-500.0,0.00022054,2]
[311930205,1705505441627,-500.0,0.00022054,2]
[311930207,1705505441636,-500.0,0.00022054,2]
[311930209,1705505441645,-500.0,0.00022054,2]
[311930211,1705505441655,-992.74,0.00022054,2]
[311930213,1705505441664,-346.62671906,0.00022054,2]
[311930215,1705505441673,-500.0,0.00022054,2]
[311930217,1705505441682,-500.0,0.00022054,2]
[311930220,1705505441695,-500.0,0.00022054,2]
[311930222,1705505441704,-500.0,0.00022054,2]
[311930223,1705505441713,-444.85689834,0.00022054,2]
[311930225,1705505441722,-500.0,0.00022054,2]
[311930227,1705505441732,-500.0,0.00022054,2]
[311930229,1705505441741,-4009.51,0.00022054,2]
[311930231,1705505441750,-500.0,0.00022054,2]
[311930233,1705505441759,-500.0,0.00022054,2]
[311930236,1705505441771,-500.0,0.00022054,2]
[311930238,1705505441781,-1319.46,0.00022054,2]
[311930239,1705505441790,-500.0,0.00022054,2]
[311930241,1705505441799,-843.97,0.00022054,2]
[311930243,1705505441808,-1067.41,0.00022054,2]
[311930246,1705505441820,-500.0,0.00022054,2]
[311930248,1705505441829,-500.0,0.00022054,2]
[311930250,1705505441838,-500.0,0.00022054,2]
[311930252,1705505441847,-500.0,0.00022054,2]
[311930254,1705505441856,-500.0,0.00022054,2]
[311930256,1705505441865,-500.0,0.00022054,2]
[311930258,1705505441875,-500.0,0.00022054,2]
[311930260,1705505441884,-500.0,0.00022054,2]
[311930262,1705505441893,-500.0,0.00022054,2]
[311930264,1705505441902,-500.0,0.00022054,2]
[311930266,1705505441910,-500.0,0.00022054,2]
[311930268,1705505441921,-753.9,0.00022054,2]
[311930270,1705505441931,-988.65,0.00022054,2]
[311930272,1705505441940,-500.0,0.00022054,2]
[311930274,1705505441949,-500.0,0.00022054,2]
[311930276,1705505441959,-1059.34,0.00022054,2]
[311930278,1705505441969,-9238.11,0.00022054,2]
[311930280,1705505441977,-1539.66,0.00022054,2]
[311930282,1705505441986,-8389.48,0.00022054,2]
[311930284,1705505441995,-500.0,0.00022054,2]
[311930286,1705505442004,-500.0,0.00022054,2]
[311930288,1705505442015,-500.0,0.00022054,2]
[311930290,1705505442024,-500.0,0.00022054,2]
[311930292,1705505442033,-500.0,0.00022054,2]
[311930294,1705505442042,-507.15349144,0.00022054,2]
[311930296,1705505442051,-500.0,0.00022054,2]
[311930298,1705505442061,-1515.39,0.00022054,2]
[311930300,1705505442070,-500.0,0.00022054,2]
[311930302,1705505442078,-500.0,0.00022054,2]
[311930304,1705505442087,-500.0,0.00022054,2]
[311930306,1705505442096,-500.0,0.00022054,2]
[311930308,1705505442106,-1630.61,0.00022054,2]
[311930310,1705505442115,-500.0,0.00022054,2]
[311930312,1705505442124,-500.0,0.00022054,2]
[311930314,1705505442133,-500.0,0.00022054,2]
[311930316,1705505442143,-500.0,0.00022054,2]
[311930318,1705505442152,-500.0,0.00022054,2]
[311930320,1705505442161,-1305.39,0.00022054,2]
[311930322,1705505442170,-500.0,0.00022054,2]
[311930324,1705505442179,-500.0,0.00022054,2]
[311930326,1705505442188,-500.0,0.00022054,2]
[311930328,1705505442198,-17294.74,0.00022054,2]
[311930330,1705505442206,-500.0,0.00022054,2]
[311930332,1705505442215,-3493.69,0.00022054,2]
[311930334,1705505442225,-4056.05,0.00022054,2]
[311930336,1705505442234,-201.66657356,0.00022054,2]
[311930338,1705505442243,-5000.6,0.00022054,2]
[311930340,1705505442252,-500.0,0.00022054,2]
[311930342,1705505442264,-500.0,0.00022054,2]
[311930344,1705505442272,-500.0,0.00022054,2]
[311930346,1705505442281,-500.0,0.00022054,2]
[311930348,1705505442290,-500.0,0.00022054,2]
[311930350,1705505442299,-500.0,0.00022054,2]
[311930352,1705505442308,-500.0,0.00022054,2]
[311930354,1705505442317,-500.0,0.00022054,2]
[311930356,1705505442327,-1665.49,0.00022054,2]
[311930358,1705505442336,-500.0,0.00022054,2]
[311930360,1705505442345,-35704.57686873,0.00022091,2]
[311930362,1705505442354,-500.0,0.0002219,2]
[311930364,1705505442363,-500.0,0.0002219,2]
[311930366,1705505442373,-500.0,0.00022191,2]
[311930368,1705505442382,-500.0,0.00022191,2]
[311930370,1705505442392,-500.0,0.00022191,2]
[311930372,1705505442401,-500.0,0.00022191,2]
[311930374,1705505442410,-500.0,0.00022191,2]
[311930376,1705505442420,-500.0,0.00022191,2]
[311930378,1705505442430,-623.8,0.00022191,2]
[311930380,1705505442440,-500.0,0.00022191,2]
[311930381,1705505442450,-1294.5,0.00022191,2]
[311930383,1705505442461,-1733.0,0.00022191,2]
[311930386,1705505442472,-500.0,0.00022191,2]
[311930387,1705505442481,-500.0,0.00022191,2]
[311930390,1705505442491,-500.0,0.00022191,2]
[311930392,1705505442502,-500.0,0.00022191,2]
[311930394,1705505442517,-500.0,0.00022191,2]
[311930395,1705505442528,-500.0,0.00022191,2]
[311930397,1705505442537,-500.0,0.00022191,2]
[311930399,1705505442546,-670.69,0.00022191,2]
[311930401,1705505442556,-500.0,0.00022191,2]
[311930403,1705505442565,-500.0,0.00022191,2]
[311930405,1705505442575,-500.0,0.00022191,2]
[311930407,1705505442585,-511.93,0.00022191,2]
[311930410,1705505442594,-500.0,0.00022191,2]
[311930412,1705505442604,-760.31,0.00022191,2]
[311930413,1705505442614,-500.0,0.00022191,2]
[311930415,1705505442623,-500.0,0.00022191,2]
[311930417,1705505442633,-500.0,0.00022191,2]
[311930419,1705505442643,-500.0,0.00022191,2]
[311930421,1705505442652,-500.0,0.00022191,2]
[311930424,1705505442661,-992.74,0.00022191,2]
[311930427,1705505442671,-500.0,0.00022191,2]
[311930429,1705505442681,-500.0,0.00022191,2]
[311930431,1705505442691,-4009.51,0.00022191,2]
[311930433,1705505442700,-500.0,0.00022191,2]
[311930435,1705505442710,-500.0,0.00022191,2]
[311930437,1705505442721,-500.0,0.00022191,2]
[311930440,1705505442730,-1319.46,0.00022191,2]
[311930443,1705505442740,-509.97078141,0.00022191,2]
[311930446,1705505442749,-843.97,0.00022191,2]
[311930448,1705505442758,-1067.41,0.00022191,2]
[311930450,1705505442774,-500.0,0.00022191,2]
[311930453,1705505442783,-500.0,0.00022191,2]
[311930455,1705505442793,-500.0,0.00022191,2]
[311930457,1705505442802,-500.0,0.00022191,2]
[311930459,1705505442811,-753.9,0.00022191,2]
[311930461,1705505442820,-988.65,0.00022191,2]
[311930462,1705505442829,-500.0,0.00022191,2]
[311930464,1705505442839,-1059.34,0.00022191,2]
[311930466,1705505442848,-9238.11,0.00022191,2]
[311930468,1705505442857,-1539.66,0.00022191,2]
[311930471,1705505442867,-8389.48,0.00022191,2]
[311930473,1705505442876,-500.0,0.00022191,2]
[311930475,1705505442885,-500.0,0.00022191,2]
[311930476,1705505442894,-500.0,0.00022191,2]
[311930479,1705505442903,-500.0,0.00022191,2]
[311930481,1705505442912,-1515.39,0.00022191,2]
[311930482,1705505442921,-500.0,0.00022191,2]
[311930485,1705505442930,-500.0,0.00022191,2]
[311930486,1705505442940,-500.0,0.00022191,2]
[311930496,1705505443022,-1630.61,0.00022191,2]
[311930498,1705505443031,-500.0,0.00022191,2]
[311930500,1705505443045,-1305.39,0.00022191,2]
[311930502,1705505443054,-500.0,0.00022191,2]
[311930504,1705505443063,-500.0,0.00022191,2]
[311930506,1705505443073,-17294.74,0.00022191,2]
[311930508,1705505443082,-500.0,0.00022191,2]
[311930510,1705505443092,-3493.69,0.00022191,2]
[311930512,1705505443101,-4056.05,0.00022191,2]
[311930514,1705505443110,-5000.6,0.00022191,2]
[311930516,1705505443119,-500.0,0.00022191,2]
[311930518,1705505443129,-500.0,0.00022191,2]
[311930520,1705505443139,-500.0,0.00022191,2]
[311930522,1705505443148,-1665.49,0.00022191,2]
[311930524,1705505443158,-500.0,0.00022191,2]
[311930526,1705505443166,-181.35131347,0.00022327,2]
[311930528,1705505443175,-500.0,0.00022327,2]
[311930530,1705505443184,-500.0,0.00022327,2]
[311930532,1705505443193,-500.0,0.00022328,2]
[311930534,1705505443203,-500.0,0.00022328,2]
[311930536,1705505443212,-500.0,0.00022328,2]
[311930538,1705505443221,-500.0,0.00022328,2]
[311930540,1705505443230,-500.0,0.00022328,2]
[311930542,1705505443239,-623.8,0.00022328,2]
[311930544,1705505443248,-500.0,0.00022328,2]
[311930546,1705505443257,-1294.5,0.00022328,2]
[311930548,1705505443269,-1733.0,0.00022328,2]
[311930550,1705505443279,-500.0,0.00022328,2]
[311930552,1705505443288,-500.0,0.00022328,2]
[311930554,1705505443298,-500.0,0.00022328,2]
[311930556,1705505443306,-500.0,0.00022328,2]
[311930558,1705505443316,-500.0,0.00022328,2]
[311930560,1705505443324,-500.0,0.00022328,2]
[311930562,1705505443334,-670.69,0.00022328,2]
[311930564,1705505443343,-500.0,0.00022328,2]
[311930566,1705505443352,-511.93,0.00022328,2]
[311930568,1705505443361,-760.31,0.00022328,2]
[311930570,1705505443370,-500.0,0.00022328,2]
[311930572,1705505443379,-500.0,0.00022328,2]
[311930575,1705505443388,-500.0,0.00022328,2]
[311930577,1705505443397,-500.0,0.00022328,2]
[311930579,1705505443406,-500.0,0.00022328,2]
[311930581,1705505443415,-992.74,0.00022328,2]
[311930582,1705505443424,-500.0,0.00022328,2]
[311930584,1705505443433,-500.0,0.00022328,2]
[311930587,1705505443443,-4009.51,0.00022328,2]
[311930588,1705505443452,-500.0,0.00022328,2]
[311930590,1705505443461,-500.0,0.00022328,2]
[311930592,1705505443470,-1319.46,0.00022328,2]
[311930594,1705505443479,-843.97,0.00022328,2]
[311930596,1705505443488,-1067.41,0.00022328,2]
[311930599,1705505443497,-500.0,0.00022328,2]
[311930601,1705505443507,-500.0,0.00022328,2]
[311930602,1705505443518,-500.0,0.00022328,2]
[311930605,1705505443528,-753.9,0.00022328,2]
[311930607,1705505443537,-988.65,0.00022328,2]
[311930609,1705505443548,-1059.34,0.00022328,2]
[311930611,1705505443558,-9238.11,0.00022328,2]
[311930613,1705505443567,-1539.66,0.00022328,2]
[311930615,1705505443576,-8389.48,0.00022328,2]
[311930617,1705505443585,-500.0,0.00022328,2]
[311930619,1705505443594,-500.0,0.00022328,2]
[311930621,1705505443603,-500.0,0.00022328,2]
[311930623,1705505443611,-528.13324619,0.00022328,2]
[311930625,1705505443621,-1515.39,0.00022328,2]
[311930627,1705505443632,-500.0,0.00022328,2]
[311930629,1705505443641,-500.0,0.00022328,2]
[311930631,1705505443650,-1630.61,0.00022328,2]
[311930632,1705505443659,-500.0,0.00022328,2]
[311930634,1705505443668,-1305.39,0.00022328,2]
[311930636,1705505443677,-500.0,0.00022328,2]
[311930638,1705505443686,-500.0,0.00022328,2]
[311930641,1705505443696,-17294.74,0.00022328,2]
[311930642,1705505443705,-3493.69,0.00022328,2]
[311930645,1705505443714,-4056.05,0.00022328,2]
[311930647,1705505443723,-5000.6,0.00022328,2]
[311930649,1705505443733,-500.0,0.00022328,2]
[311930651,1705505443742,-1665.49,0.00022328,2]
[311930653,1705505443751,-534.96971966,0.00022328,2]
[311930655,1705505443760,-166.666666,0.00022431,2]
[311930657,1705505443771,-500.0,0.00022464,2]
[311930658,1705505443780,-500.0,0.00022464,2]
[311930660,1705505443789,-242.554,0.00022465,2]
[311930663,1705505443799,-625.84379693,0.00022465,2]
[311930665,1705505443808,-500.0,0.00022465,2]
[311930667,1705505443817,-500.0,0.00022465,2]
[311930669,1705505443826,-500.0,0.00022465,2]
[311930671,1705505443835,-500.0,0.00022465,2]
[311930673,1705505443843,-623.8,0.00022465,2]
[311930674,1705505443853,-500.0,0.00022465,2]
[311930677,1705505443862,-1294.5,0.00022465,2]
[311930679,1705505443871,-1733.0,0.00022465,2]
[311930681,1705505443881,-500.0,0.00022465,2]
[311930683,1705505443890,-500.0,0.00022465,2]
[311930685,1705505443899,-500.0,0.00022465,2]
[311930686,1705505443908,-500.0,0.00022465,2]
[311930689,1705505443917,-500.0,0.00022465,2]
[311930691,1705505443926,-500.0,0.00022465,2]
[311930692,1705505443935,-670.69,0.00022465,2]
[311930695,1705505443945,-500.0,0.00022465,2]
[311930697,1705505443954,-511.93,0.00022465,2]
[311930699,1705505443963,-760.31,0.00022465,2]
[311930701,1705505443972,-500.0,0.00022465,2]
[311930703,1705505443981,-500.0,0.00022465,2]
[311930704,1705505443990,-500.0,0.00022465,2]
[311930706,1705505443999,-500.0,0.00022465,2]
[311930709,1705505444009,-500.0,0.00022465,2]
[311930711,1705505444022,-992.74,0.00022465,2]
[311930713,1705505444031,-500.0,0.00022465,2]
[311930714,1705505444041,-500.0,0.00022465,2]
[311930716,1705505444050,-4009.51,0.00022465,2]
[311930719,1705505444060,-267.89510385,0.00022465,2]
[311930721,1705505444070,-500.0,0.00022465,2]
[311930723,1705505444079,-1319.46,0.00022465,2]
[311930724,1705505444090,-843.97,0.00022465,2]
[311930727,1705505444099,-1067.41,0.00022465,2]
[311930729,1705505444109,-500.0,0.00022465,2]
[311930731,1705505444119,-500.0,0.00022465,2]
[311930733,1705505444128,-500.0,0.00022465,2]
[311930735,1705505444138,-753.9,0.00022465,2]
[311930737,1705505444147,-988.65,0.00022465,2]